[Event "Early-Titled-Tuesday-Blitz-February-27-2024"]
[Site "Chess.com"]
[Date "2024.02.27"]
[Round "6"]
[White "klimkoj"]
[Black "Shield12"]
[Result "0-1"]
[WhiteElo "2825"]
[BlackElo "2978"]
[TimeControl "180+1"]
[EndTime "9:00:29 PST"]
[Termination "Shield12 won by resignation"]

1. d4 {[%clk 0:03:00.9]} 1... Nf6 {[%clk 0:02:59.6]} 2. Nf3 {[%clk 0:03:01.8]}
2... d5 {[%clk 0:02:59.2]} 3. c4 {[%clk 0:03:01.9]} 3... e6 {[%clk 0:02:59.4]}
4. Nc3 {[%clk 0:03:02.1]} 4... Bb4 {[%clk 0:02:58.9]} 5. Qa4+ {[%clk 0:03:02.1]}
5... Nc6 {[%clk 0:02:58.2]} 6. e3 {[%clk 0:03:02.5]} 6... O-O {[%clk 0:02:58.2]}
7. Bd2 {[%clk 0:03:02.6]} 7... dxc4 {[%clk 0:02:58.3]} 8. Bxc4 {[%clk
0:03:02.3]} 8... Bd6 {[%clk 0:02:59]} 9. Rd1 {[%clk 0:02:59.2]} 9... a6 {[%clk
0:02:56.1]} 10. Qc2 {[%clk 0:02:58.5]} 10... b5 {[%clk 0:02:53]} 11. Be2 {[%clk
0:02:54.9]} 11... Bb7 {[%clk 0:02:53.1]} 12. O-O {[%clk 0:02:53.2]} 12... e5
{[%clk 0:02:47.1]} 13. dxe5 {[%clk 0:02:37.6]} 13... Nxe5 {[%clk 0:02:48]} 14.
Nxe5 {[%clk 0:02:35.5]} 14... Bxe5 {[%clk 0:02:48.9]} 15. f4 {[%clk 0:02:36.1]}
15... Bd6 {[%clk 0:02:48.4]} 16. e4 {[%clk 0:02:36]} 16... b4 {[%clk 0:02:40]}
17. e5 {[%clk 0:02:19.9]} 17... bxc3 {[%clk 0:02:39.2]} 18. Bxc3 {[%clk
0:01:46.1]} 18... Bc5+ {[%clk 0:02:37.4]} 19. Kh1 {[%clk 0:01:45.6]} 19... Nd5
{[%clk 0:02:36.3]} 20. Ba5 {[%clk 0:01:40]} 20... Qe7 {[%clk 0:02:25.8]} 0-1

[Event "Early-Titled-Tuesday-Blitz-February-27-2024"]
[Site "Chess.com"]
[Date "2024.02.27"]
[Round "6"]
[White "Andreikka"]
[Black "Adar_07"]
[Result "1-0"]
[WhiteElo "2955"]
[BlackElo "2791"]
[TimeControl "180+1"]
[EndTime "9:00:38 PST"]
[Termination "Andreikka won by resignation"]

1. d4 {[%clk 0:03:00.9]} 1... Nf6 {[%clk 0:02:59]} 2. c4 {[%clk 0:03:00.8]} 2...
e6 {[%clk 0:02:58.2]} 3. Nc3 {[%clk 0:02:58.6]} 3... Bb4 {[%clk 0:02:58.3]} 4.
Qc2 {[%clk 0:02:59]} 4... b6 {[%clk 0:02:57.6]} 5. e4 {[%clk 0:02:55.3]} 5...
Bb7 {[%clk 0:02:56.9]} 6. Bd3 {[%clk 0:02:50.8]} 6... d5 {[%clk 0:02:52.2]} 7.
cxd5 {[%clk 0:02:48.7]} 7... exd5 {[%clk 0:02:46.1]} 8. e5 {[%clk 0:02:48.4]}
8... Ne4 {[%clk 0:02:43.5]} 9. Ne2 {[%clk 0:02:48]} 9... O-O {[%clk 0:02:42.1]}
10. O-O {[%clk 0:02:47.3]} 10... f5 {[%clk 0:02:40.8]} 11. f3 {[%clk 0:02:43.2]}
11... Bxc3 {[%clk 0:02:33.6]} 12. bxc3 {[%clk 0:02:35.4]} 12... a6 {[%clk
0:02:19.1]} 13. Qb1 {[%clk 0:02:29.7]} 13... Ng5 {[%clk 0:01:46.8]} 14. Bxf5
{[%clk 0:02:29.3]} 14... h6 {[%clk 0:01:45.8]} 15. Nf4 {[%clk 0:02:12.9]} 15...
Bc8 {[%clk 0:01:33.7]} 16. Bxc8 {[%clk 0:02:12.2]} 16... Qxc8 {[%clk 0:01:34.6]}
17. Nxd5 {[%clk 0:02:12.8]} 17... Nc6 {[%clk 0:01:33]} 18. Bxg5 {[%clk 0:02:12]}
18... hxg5 {[%clk 0:01:32.7]} 19. Qg6 {[%clk 0:02:12.2]} 1-0

[Event "Early-Titled-Tuesday-Blitz-February-27-2024"]
[Site "Chess.com"]
[Date "2024.02.27"]
[Round "6"]
[White "aljado"]
[Black "Ati1517"]
[Result "1-0"]
[WhiteElo "2045"]
[BlackElo "2219"]
[TimeControl "180+1"]
[EndTime "9:00:42 PST"]
[Termination "aljado won by resignation"]

1. e4 {[%clk 0:03:00.9]} 1... c5 {[%clk 0:02:58.9]} 2. Nf3 {[%clk 0:03:00]} 2...
d6 {[%clk 0:02:58.8]} 3. c3 {[%clk 0:02:58.7]} 3... Nf6 {[%clk 0:02:58.1]} 4.
Bc4 {[%clk 0:02:58.4]} 4... Bd7 {[%clk 0:02:57.5]} 5. Qe2 {[%clk 0:02:56.6]}
5... e6 {[%clk 0:02:56.3]} 6. O-O {[%clk 0:02:55.9]} 6... Nc6 {[%clk 0:02:56.5]}
7. Rd1 {[%clk 0:02:52.2]} 7... Be7 {[%clk 0:02:55.8]} 8. d4 {[%clk 0:02:52.1]}
8... d5 {[%clk 0:02:55.2]} 9. exd5 {[%clk 0:02:50.8]} 9... exd5 {[%clk
0:02:55.2]} 10. Bb3 {[%clk 0:02:48.3]} 10... O-O {[%clk 0:02:54.1]} 11. Bg5
{[%clk 0:02:43.1]} 11... c4 {[%clk 0:02:52.2]} 12. Bc2 {[%clk 0:02:41.9]} 12...
h6 {[%clk 0:02:51.7]} 13. Bh4 {[%clk 0:02:40.7]} 13... Bd6 {[%clk 0:02:50]} 14.
b3 {[%clk 0:02:18.8]} 14... b5 {[%clk 0:02:47]} 15. a4 {[%clk 0:02:15.3]} 15...
a6 {[%clk 0:02:45.1]} 16. axb5 {[%clk 0:02:13.6]} 16... a5 {[%clk 0:02:46]} 17.
bxc6 {[%clk 0:02:08.9]} 17... Bxc6 {[%clk 0:02:41.9]} 18. bxc4 {[%clk
0:02:03.8]} 18... dxc4 {[%clk 0:02:35.4]} 19. Nbd2 {[%clk 0:01:53.9]} 19... Re8
{[%clk 0:02:32.3]} 20. Qxc4 {[%clk 0:01:46.7]} 20... Bd5 {[%clk 0:02:33.2]} 21.
Bxf6 {[%clk 0:01:36.1]} 21... gxf6 {[%clk 0:02:31.4]} 22. Qd3 {[%clk 0:01:35.8]}
22... Kf8 {[%clk 0:02:31]} 23. Qh7 {[%clk 0:01:32.7]} 23... Ke7 {[%clk
0:02:31.9]} 24. Re1+ {[%clk 0:01:29.8]} 24... Kd7 {[%clk 0:02:32.8]} 25. Ba4+
{[%clk 0:01:27.8]} 1-0

[Event "Early-Titled-Tuesday-Blitz-February-27-2024"]
[Site "Chess.com"]
[Date "2024.02.27"]
[Round "6"]
[White "BillCoe"]
[Black "InitiatingASC"]
[Result "0-1"]
[WhiteElo "2098"]
[BlackElo "2358"]
[TimeControl "180+1"]
[EndTime "9:01:07 PST"]
[Termination "InitiatingASC won by resignation"]

1. e4 {[%clk 0:02:53.3]} 1... c5 {[%clk 0:02:59.7]} 2. Nf3 {[%clk 0:02:53.6]}
2... Nc6 {[%clk 0:02:59]} 3. Bb5 {[%clk 0:02:52.9]} 3... Nf6 {[%clk 0:02:58.4]}
4. e5 {[%clk 0:02:49.5]} 4... Nd5 {[%clk 0:02:57.9]} 5. O-O {[%clk 0:02:49.1]}
5... Nc7 {[%clk 0:02:57.2]} 6. Bxc6 {[%clk 0:02:46.1]} 6... bxc6 {[%clk
0:02:57.3]} 7. Re1 {[%clk 0:02:43.2]} 7... g6 {[%clk 0:02:56.1]} 8. c3 {[%clk
0:02:42.8]} 8... Bg7 {[%clk 0:02:55.9]} 9. d4 {[%clk 0:02:43]} 9... cxd4 {[%clk
0:02:55.2]} 10. cxd4 {[%clk 0:02:43.9]} 10... O-O {[%clk 0:02:54.3]} 11. Nc3
{[%clk 0:02:43.7]} 11... d6 {[%clk 0:02:51.5]} 12. Bf4 {[%clk 0:02:40.9]} 12...
Bg4 {[%clk 0:02:49.4]} 13. h3 {[%clk 0:02:35.3]} 13... Bxf3 {[%clk 0:02:41.2]}
14. Qxf3 {[%clk 0:02:36.2]} 14... Ne6 {[%clk 0:02:31.7]} 15. Rad1 {[%clk
0:02:30]} 15... Nxf4 {[%clk 0:02:29.2]} 16. Qxf4 {[%clk 0:02:30.9]} 16... Rb8
{[%clk 0:02:29.3]} 17. b3 {[%clk 0:02:27.3]} 17... Qa5 {[%clk 0:02:18.4]} 18.
Ne4 {[%clk 0:02:18.9]} 18... dxe5 {[%clk 0:02:08.3]} 19. dxe5 {[%clk 0:02:13]}
19... Qxe5 {[%clk 0:02:08.2]} 20. Qf3 {[%clk 0:02:11.5]} 20... Qf5 {[%clk
0:01:56.1]} 21. Qxf5 {[%clk 0:01:59.3]} 21... gxf5 {[%clk 0:01:55.8]} 22. Nc5
{[%clk 0:01:55.7]} 22... Rfd8 {[%clk 0:01:45.5]} 23. Rxd8+ {[%clk 0:01:51.9]}
23... Rxd8 {[%clk 0:01:45.4]} 24. Rxe7 {[%clk 0:01:52]} 24... Bf8 {[%clk
0:01:45.4]} 25. Re5 {[%clk 0:01:49.2]} 25... Rd1+ {[%clk 0:01:42.6]} 26. Kh2
{[%clk 0:01:47.2]} 26... Bd6 {[%clk 0:01:42.9]} 0-1

[Event "Early-Titled-Tuesday-Blitz-February-27-2024"]
[Site "Chess.com"]
[Date "2024.02.27"]
[Round "6"]
[White "bulletteemo"]
[Black "romulocardoso"]
[Result "1-0"]
[WhiteElo "2564"]
[BlackElo "2339"]
[TimeControl "180+1"]
[EndTime "9:01:12 PST"]
[Termination "bulletteemo won by resignation"]

1. e4 {[%clk 0:02:57.6]} 1... c5 {[%clk 0:03:00.1]} 2. Nf3 {[%clk 0:02:57.3]}
2... g6 {[%clk 0:03:00.7]} 3. d4 {[%clk 0:02:54]} 3... cxd4 {[%clk 0:03:01.6]}
4. Nxd4 {[%clk 0:02:54.8]} 4... Nc6 {[%clk 0:03:01.6]} 5. c4 {[%clk 0:02:55]}
5... Bg7 {[%clk 0:03:00.2]} 6. Be3 {[%clk 0:02:54.4]} 6... Nf6 {[%clk
0:03:00.5]} 7. Nc3 {[%clk 0:02:54.3]} 7... O-O {[%clk 0:03:00.4]} 8. Be2 {[%clk
0:02:53.5]} 8... d6 {[%clk 0:02:57.3]} 9. O-O {[%clk 0:02:52]} 9... Be6 {[%clk
0:02:55.1]} 10. Rc1 {[%clk 0:02:48.2]} 10... Rc8 {[%clk 0:02:54.5]} 11. b3
{[%clk 0:02:47]} 11... a6 {[%clk 0:02:49.6]} 12. Nxc6 {[%clk 0:02:29.8]} 12...
Rxc6 {[%clk 0:02:46.3]} 13. f4 {[%clk 0:02:26]} 13... Qd7 {[%clk 0:02:43.4]} 14.
h3 {[%clk 0:02:15.6]} 14... Rfc8 {[%clk 0:02:36.9]} 15. Qd3 {[%clk 0:02:11.2]}
15... Qc7 {[%clk 0:02:10.1]} 16. Bf3 {[%clk 0:01:57.4]} 16... b5 {[%clk
0:01:55]} 17. Nd5 {[%clk 0:01:38.7]} 17... bxc4 {[%clk 0:01:41.4]} 18. Nxc7
{[%clk 0:01:36.5]} 18... cxd3 {[%clk 0:01:40.6]} 19. Rxc6 {[%clk 0:01:36.1]} 1-0

[Event "Early-Titled-Tuesday-Blitz-February-27-2024"]
[Site "Chess.com"]
[Date "2024.02.27"]
[Round "6"]
[White "Fluffey"]
[Black "pfalcon1949"]
[Result "1-0"]
[WhiteElo "2508"]
[BlackElo "1900"]
[TimeControl "180+1"]
[EndTime "9:01:25 PST"]
[Termination "Fluffey won by resignation"]

1. d4 {[%clk 0:03:00.9]} 1... Nf6 {[%clk 0:02:21.4]} 2. Bf4 {[%clk 0:03:00.4]}
2... d5 {[%clk 0:02:20.6]} 3. e3 {[%clk 0:03:00.7]} 3... c5 {[%clk 0:02:21.5]}
4. Nf3 {[%clk 0:03:01.2]} 4... Nc6 {[%clk 0:02:21.7]} 5. Nbd2 {[%clk 0:03:01.9]}
5... Bf5 {[%clk 0:02:19.6]} 6. Bb5 {[%clk 0:03:01.3]} 6... Rc8 {[%clk
0:02:17.5]} 7. Ne5 {[%clk 0:02:59.1]} 7... e6 {[%clk 0:02:08.8]} 8. Nxc6 {[%clk
0:02:59.2]} 8... bxc6 {[%clk 0:02:08.3]} 9. Ba6 {[%clk 0:02:59.5]} 9... cxd4
{[%clk 0:02:04.8]} 10. exd4 {[%clk 0:02:58.4]} 10... Ra8 {[%clk 0:01:43.9]} 11.
Bb7 {[%clk 0:02:58.2]} 11... Rc8 {[%clk 0:01:42.2]} 12. Bxc8 {[%clk 0:02:58]}
12... Qxc8 {[%clk 0:01:41.6]} 13. O-O {[%clk 0:02:58.2]} 13... Be7 {[%clk
0:01:41.9]} 14. c4 {[%clk 0:02:57.8]} 14... O-O {[%clk 0:01:42.3]} 15. Qa4
{[%clk 0:02:52.1]} 15... Qb7 {[%clk 0:01:35.8]} 16. b3 {[%clk 0:02:51.8]} 16...
Rc8 {[%clk 0:01:26.3]} 17. Rac1 {[%clk 0:02:50.4]} 17... h6 {[%clk 0:01:23.8]}
18. cxd5 {[%clk 0:02:46]} 18... Nxd5 {[%clk 0:01:05.2]} 19. Be5 {[%clk
0:02:38.7]} 19... f6 {[%clk 0:01:00.9]} 20. Bg3 {[%clk 0:02:38.2]} 20... Bb4
{[%clk 0:00:53.2]} 21. Nc4 {[%clk 0:02:30.9]} 21... Nc3 {[%clk 0:00:51.6]} 22.
Rxc3 {[%clk 0:02:31]} 22... Bxc3 {[%clk 0:00:50.9]} 23. Nd6 {[%clk 0:02:31.1]}
23... Qd7 {[%clk 0:00:42.1]} 24. Nxc8 {[%clk 0:02:30.5]} 24... Qxc8 {[%clk
0:00:41.7]} 25. Rc1 {[%clk 0:02:30.6]} 25... Bxd4 {[%clk 0:00:40]} 26. Qxd4
{[%clk 0:02:30.3]} 1-0

[Event "Early-Titled-Tuesday-Blitz-February-27-2024"]
[Site "Chess.com"]
[Date "2024.02.27"]
[Round "6"]
[White "Savagelittlemole"]
[Black "Austen48"]
[Result "1-0"]
[WhiteElo "2445"]
[BlackElo "2247"]
[TimeControl "180+1"]
[EndTime "9:01:25 PST"]
[Termination "Savagelittlemole won by resignation"]

1. e4 {[%clk 0:03:00.9]} 1... c5 {[%clk 0:00:26.1]} 2. Ne2 {[%clk 0:02:59.8]}
2... e6 {[%clk 0:00:26.4]} 3. g3 {[%clk 0:03:00.3]} 3... Nc6 {[%clk 0:00:25.4]}
4. Bg2 {[%clk 0:03:01]} 4... d6 {[%clk 0:00:25.2]} 5. O-O {[%clk 0:03:01.5]}
5... Nf6 {[%clk 0:00:25.6]} 6. c3 {[%clk 0:03:02.2]} 6... Be7 {[%clk 0:00:25.9]}
7. d4 {[%clk 0:03:03]} 7... cxd4 {[%clk 0:00:26]} 8. cxd4 {[%clk 0:03:03.9]}
8... O-O {[%clk 0:00:26]} 9. Nbc3 {[%clk 0:03:04.1]} 9... a6 {[%clk 0:00:25.6]}
10. h3 {[%clk 0:03:04.4]} 10... Re8 {[%clk 0:00:24.4]} 11. Be3 {[%clk
0:03:04.5]} 11... d5 {[%clk 0:00:23.8]} 12. e5 {[%clk 0:03:03.3]} 12... Nd7
{[%clk 0:00:23.7]} 13. f4 {[%clk 0:03:03]} 13... Nf8 {[%clk 0:00:23.9]} 14. g4
{[%clk 0:03:02.4]} 14... b5 {[%clk 0:00:23.5]} 15. f5 {[%clk 0:03:00.4]} 15...
b4 {[%clk 0:00:23.3]} 16. Na4 {[%clk 0:02:59.8]} 16... exf5 {[%clk 0:00:22.6]}
17. gxf5 {[%clk 0:02:59.6]} 17... f6 {[%clk 0:00:22.8]} 18. e6 {[%clk 0:02:56]}
18... Qc7 {[%clk 0:00:20.7]} 19. Nf4 {[%clk 0:02:51.8]} 19... Qa5 {[%clk
0:00:18]} 20. Nxd5 {[%clk 0:02:48.4]} 20... Qxa4 {[%clk 0:00:16.5]} 21. Qxa4
{[%clk 0:02:47.7]} 21... Bb7 {[%clk 0:00:14.9]} 22. Nxe7+ {[%clk 0:02:46.5]} 1-0

[Event "Early-Titled-Tuesday-Blitz-February-27-2024"]
[Site "Chess.com"]
[Date "2024.02.27"]
[Round "6"]
[White "BilicVladimir"]
[Black "VitaliyChayka"]
[Result "1-0"]
[WhiteElo "2682"]
[BlackElo "2512"]
[TimeControl "180+1"]
[EndTime "9:01:31 PST"]
[Termination "BilicVladimir won by resignation"]

1. Nf3 {[%clk 0:03:00.9]} 1... d6 {[%clk 0:03:00.4]} 2. c4 {[%clk 0:03:01.8]}
2... e5 {[%clk 0:03:00.6]} 3. d4 {[%clk 0:03:02]} 3... e4 {[%clk 0:03:01.1]} 4.
Nfd2 {[%clk 0:03:01.4]} 4... f5 {[%clk 0:03:02]} 5. e3 {[%clk 0:03:01.5]} 5...
Nf6 {[%clk 0:03:02.2]} 6. Nc3 {[%clk 0:03:02.2]} 6... Be7 {[%clk 0:03:02.4]} 7.
Be2 {[%clk 0:03:02.6]} 7... c5 {[%clk 0:03:02.7]} 8. O-O {[%clk 0:02:58.1]} 8...
Nc6 {[%clk 0:03:03]} 9. d5 {[%clk 0:02:51.8]} 9... Ne5 {[%clk 0:03:02.4]} 10. f4
{[%clk 0:02:49.8]} 10... exf3 {[%clk 0:02:56.9]} 11. Nxf3 {[%clk 0:02:49.5]}
11... Nxf3+ {[%clk 0:02:52.1]} 12. gxf3 {[%clk 0:02:49.2]} 12... O-O {[%clk
0:02:53]} 13. Bd3 {[%clk 0:02:47.7]} 13... Nd7 {[%clk 0:02:48.8]} 14. Kh1 {[%clk
0:02:47.3]} 14... Ne5 {[%clk 0:02:47.7]} 15. Be2 {[%clk 0:02:47.5]} 15... Bd7
{[%clk 0:02:44]} 16. b3 {[%clk 0:02:46.3]} 16... Bf6 {[%clk 0:02:43]} 17. Bb2
{[%clk 0:02:46.4]} 17... Qe7 {[%clk 0:02:41.9]} 18. Qc2 {[%clk 0:02:46.1]} 18...
a6 {[%clk 0:02:39.9]} 19. Rae1 {[%clk 0:02:44.3]} 19... Rae8 {[%clk 0:02:37.1]}
20. a4 {[%clk 0:02:38.4]} 20... Ng6 {[%clk 0:02:33]} 21. Bd3 {[%clk 0:02:34.6]}
21... Bh4 {[%clk 0:02:23]} 22. Re2 {[%clk 0:02:30.8]} 22... Ne5 {[%clk
0:02:15.7]} 23. Nd1 {[%clk 0:02:23.5]} 23... Qf7 {[%clk 0:02:14.6]} 24. f4
{[%clk 0:02:08.8]} 24... Nxd3 {[%clk 0:01:51.5]} 25. Qxd3 {[%clk 0:02:08.2]}
25... Qh5 {[%clk 0:01:52.4]} 26. Rg2 {[%clk 0:02:04.9]} 26... Bf6 {[%clk
0:01:50.7]} 27. Bxf6 {[%clk 0:02:02.6]} 27... Rxf6 {[%clk 0:01:51.6]} 28. Rfg1
{[%clk 0:02:02.2]} 28... Re7 {[%clk 0:01:50.8]} 29. Qc3 {[%clk 0:01:58.8]} 29...
Qh4 {[%clk 0:01:43.8]} 30. Rg5 {[%clk 0:01:53.1]} 30... Be8 {[%clk 0:01:41]} 31.
Qxf6 {[%clk 0:01:48.7]} 1-0

[Event "Early-Titled-Tuesday-Blitz-February-27-2024"]
[Site "Chess.com"]
[Date "2024.02.27"]
[Round "6"]
[White "deepfear"]
[Black "thebeast2900"]
[Result "0-1"]
[WhiteElo "1981"]
[BlackElo "2302"]
[TimeControl "180+1"]
[EndTime "9:01:32 PST"]
[Termination "thebeast2900 won by resignation"]

1. e4 {[%clk 0:02:50.8]} 1... c5 {[%clk 0:02:59.5]} 2. Nc3 {[%clk 0:02:50.5]}
2... Nc6 {[%clk 0:02:58.9]} 3. f4 {[%clk 0:02:46.4]} 3... g6 {[%clk 0:02:55.1]}
4. Nf3 {[%clk 0:02:40.7]} 4... Bg7 {[%clk 0:02:55.5]} 5. Bc4 {[%clk 0:02:39.4]}
5... e6 {[%clk 0:02:55.3]} 6. O-O {[%clk 0:02:35.6]} 6... Nge7 {[%clk
0:02:55.8]} 7. d3 {[%clk 0:02:19.2]} 7... O-O {[%clk 0:02:53.8]} 8. Be3 {[%clk
0:02:12.7]} 8... d5 {[%clk 0:02:53]} 9. Bxc5 {[%clk 0:01:43.7]} 9... dxc4 {[%clk
0:02:51.1]} 10. dxc4 {[%clk 0:01:42.5]} 10... b6 {[%clk 0:02:09.9]} 11. Ba3
{[%clk 0:01:37.3]} 11... Ba6 {[%clk 0:02:05.7]} 12. Qe2 {[%clk 0:01:33.1]} 12...
Nd4 {[%clk 0:02:03.7]} 13. Nxd4 {[%clk 0:01:32.1]} 13... Qxd4+ {[%clk
0:01:59.7]} 14. Kh1 {[%clk 0:01:30.7]} 14... Bxc4 {[%clk 0:01:58.6]} 15. Qf2
{[%clk 0:01:02]} 15... Bxf1 {[%clk 0:01:52.3]} 16. Bxe7 {[%clk 0:00:52.6]} 16...
Qxf2 {[%clk 0:01:51.2]} 0-1

[Event "Early-Titled-Tuesday-Blitz-February-27-2024"]
[Site "Chess.com"]
[Date "2024.02.27"]
[Round "6"]
[White "Genghis_K"]
[Black "Practical-Play"]
[Result "1-0"]
[WhiteElo "2933"]
[BlackElo "2582"]
[TimeControl "180+1"]
[EndTime "9:01:36 PST"]
[Termination "Genghis_K won by resignation"]

1. e4 {[%clk 0:02:46.1]} 1... e5 {[%clk 0:02:57]} 2. Nf3 {[%clk 0:02:46.5]} 2...
Nc6 {[%clk 0:02:56.9]} 3. d4 {[%clk 0:02:47]} 3... exd4 {[%clk 0:02:56.8]} 4.
Nxd4 {[%clk 0:02:47.9]} 4... Nf6 {[%clk 0:02:49.4]} 5. Nxc6 {[%clk 0:02:47.7]}
5... bxc6 {[%clk 0:02:49.1]} 6. Bd3 {[%clk 0:02:48.6]} 6... d5 {[%clk
0:02:45.7]} 7. exd5 {[%clk 0:02:49.5]} 7... cxd5 {[%clk 0:02:43.6]} 8. O-O
{[%clk 0:02:50.2]} 8... c6 {[%clk 0:02:33.4]} 9. c4 {[%clk 0:02:48.8]} 9... Be7
{[%clk 0:02:25.2]} 10. Nc3 {[%clk 0:02:48.9]} 10... O-O {[%clk 0:02:24.6]} 11.
cxd5 {[%clk 0:02:49.3]} 11... cxd5 {[%clk 0:02:23.4]} 12. Be3 {[%clk 0:02:50]}
12... Kh8 {[%clk 0:02:11.7]} 13. Bd4 {[%clk 0:02:49.1]} 13... Bg4 {[%clk
0:02:07.5]} 14. Qd2 {[%clk 0:02:47]} 14... Bh5 {[%clk 0:01:56.1]} 15. Rfe1
{[%clk 0:02:04.3]} 15... a5 {[%clk 0:01:51.1]} 16. Re5 {[%clk 0:01:54.5]} 16...
Bd6 {[%clk 0:01:43.6]} 17. Rxh5 {[%clk 0:01:43.3]} 17... Nxh5 {[%clk 0:01:38.6]}
18. Qh6 {[%clk 0:01:42.9]} 18... Bxh2+ {[%clk 0:01:37.9]} 19. Kxh2 {[%clk
0:01:22.4]} 19... Qh4+ {[%clk 0:01:33.7]} 20. Kg1 {[%clk 0:01:22.8]} 20... f5
{[%clk 0:01:29.7]} 21. Bxg7+ {[%clk 0:01:21.6]} 1-0

[Event "Early-Titled-Tuesday-Blitz-February-27-2024"]
[Site "Chess.com"]
[Date "2024.02.27"]
[Round "6"]
[White "campochess"]
[Black "Rosh1610"]
[Result "0-1"]
[WhiteElo "2188"]
[BlackElo "2419"]
[TimeControl "180+1"]
[EndTime "9:01:53 PST"]
[Termination "Rosh1610 won by resignation"]

1. Nf3 {[%clk 0:02:59.6]} 1... d5 {[%clk 0:02:59.9]} 2. b3 {[%clk 0:02:59.2]}
2... Nf6 {[%clk 0:03:00.8]} 3. Bb2 {[%clk 0:02:59]} 3... g6 {[%clk 0:03:01.4]}
4. d3 {[%clk 0:02:56.9]} 4... Bg7 {[%clk 0:03:01.8]} 5. c4 {[%clk 0:02:55.8]}
5... O-O {[%clk 0:03:02]} 6. g3 {[%clk 0:02:54.5]} 6... dxc4 {[%clk 0:03:01.4]}
7. bxc4 {[%clk 0:02:53.1]} 7... Nc6 {[%clk 0:02:58.2]} 8. Bg2 {[%clk 0:02:52]}
8... Bg4 {[%clk 0:02:55.9]} 9. Nbd2 {[%clk 0:02:50.5]} 9... Re8 {[%clk
0:02:53.8]} 10. h3 {[%clk 0:02:50.3]} 10... Bxf3 {[%clk 0:02:53.4]} 11. Nxf3
{[%clk 0:02:50.1]} 11... e5 {[%clk 0:02:53.3]} 12. O-O {[%clk 0:02:48.2]} 12...
e4 {[%clk 0:02:53.5]} 13. Ng5 {[%clk 0:02:38.8]} 13... h6 {[%clk 0:02:12.2]} 14.
Nxe4 {[%clk 0:02:33.6]} 14... Nxe4 {[%clk 0:02:12.6]} 15. Bxg7 {[%clk
0:02:32.5]} 15... Nxg3 {[%clk 0:02:13.3]} 16. fxg3 {[%clk 0:02:30.9]} 16... Kxg7
{[%clk 0:02:13.4]} 17. Bxc6 {[%clk 0:02:23]} 17... bxc6 {[%clk 0:02:12.9]} 18.
Rf3 {[%clk 0:02:16.5]} 18... Qd4+ {[%clk 0:02:12.2]} 19. Kg2 {[%clk 0:02:14]}
19... Rxe2+ {[%clk 0:02:08.1]} 20. Qxe2 {[%clk 0:02:11]} 20... Qxa1 {[%clk
0:02:05.3]} 21. Qe7 {[%clk 0:02:10.2]} 21... Rf8 {[%clk 0:01:56.6]} 22. Qxc7
{[%clk 0:02:07.1]} 22... Qxa2+ {[%clk 0:01:54.7]} 23. Rf2 {[%clk 0:02:05.9]}
23... Qa4 {[%clk 0:01:48.7]} 24. Qe5+ {[%clk 0:01:59.9]} 24... Kg8 {[%clk
0:01:47.9]} 25. h4 {[%clk 0:01:51.6]} 25... h5 {[%clk 0:01:47.2]} 26. Rf6 {[%clk
0:01:44.7]} 26... Qc2+ {[%clk 0:01:35.9]} 27. Kh3 {[%clk 0:01:42.5]} 27... Qxd3
{[%clk 0:01:29.3]} 28. Rxc6 {[%clk 0:01:38.5]} 28... Qd7+ {[%clk 0:01:27]} 0-1

[Event "Early-Titled-Tuesday-Blitz-February-27-2024"]
[Site "Chess.com"]
[Date "2024.02.27"]
[Round "6"]
[White "Grischuk"]
[Black "AlmasRakhmatullaev"]
[Result "1-0"]
[WhiteElo "3046"]
[BlackElo "2833"]
[TimeControl "180+1"]
[EndTime "9:02:11 PST"]
[Termination "Grischuk won by resignation"]

1. d4 {[%clk 0:03:00.9]} 1... d5 {[%clk 0:03:00]} 2. Nf3 {[%clk 0:03:00.9]} 2...
e6 {[%clk 0:03:00.1]} 3. c4 {[%clk 0:03:00.3]} 3... a6 {[%clk 0:03:00.5]} 4. Bg5
{[%clk 0:02:59.3]} 4... Be7 {[%clk 0:03:00.3]} 5. Bxe7 {[%clk 0:02:59.2]} 5...
Nxe7 {[%clk 0:03:01.1]} 6. Nbd2 {[%clk 0:02:55.2]} 6... Nd7 {[%clk 0:03:01.5]}
7. Rc1 {[%clk 0:02:54]} 7... O-O {[%clk 0:02:58.3]} 8. g3 {[%clk 0:02:54]} 8...
dxc4 {[%clk 0:02:53.3]} 9. Nxc4 {[%clk 0:02:50.4]} 9... b5 {[%clk 0:02:53.8]}
10. Ncd2 {[%clk 0:02:42.7]} 10... Bb7 {[%clk 0:02:53.5]} 11. Bg2 {[%clk
0:02:42.6]} 11... Rc8 {[%clk 0:02:50.4]} 12. Nb3 {[%clk 0:02:28.3]} 12... Bd5
{[%clk 0:02:50.7]} 13. O-O {[%clk 0:02:27.8]} 13... Bxb3 {[%clk 0:02:44.7]} 14.
Qxb3 {[%clk 0:02:26.4]} 14... c5 {[%clk 0:02:45.4]} 15. dxc5 {[%clk 0:02:23.1]}
15... Nxc5 {[%clk 0:02:46.3]} 16. Qa3 {[%clk 0:02:22.9]} 16... Qb6 {[%clk
0:02:45.4]} 17. Rfd1 {[%clk 0:02:20.3]} 17... Nd5 {[%clk 0:02:42.3]} 18. Ne5
{[%clk 0:02:17.5]} 18... b4 {[%clk 0:02:34.3]} 19. Qf3 {[%clk 0:02:17.4]} 19...
Qb8 {[%clk 0:02:15.4]} 20. Nd3 {[%clk 0:02:09.8]} 20... Na4 {[%clk 0:02:10.5]}
21. Qg4 {[%clk 0:01:59.8]} 21... a5 {[%clk 0:01:55]} 22. Bxd5 {[%clk 0:01:58.6]}
22... exd5 {[%clk 0:01:55.9]} 23. Qd4 {[%clk 0:01:51.3]} 23... Rfd8 {[%clk
0:01:40.9]} 24. Nf4 {[%clk 0:01:43.2]} 24... Rxc1 {[%clk 0:01:30.6]} 25. Rxc1
{[%clk 0:01:43.2]} 25... h6 {[%clk 0:01:26]} 26. Nh5 {[%clk 0:01:26.3]} 26... f6
{[%clk 0:01:26.4]} 27. Qg4 {[%clk 0:01:23.4]} 27... Qa7 {[%clk 0:01:26.8]} 28.
Nxf6+ {[%clk 0:01:22.1]} 28... Kh8 {[%clk 0:01:27.1]} 29. Qg6 {[%clk 0:01:19]}
1-0